bitfinex/quotes_BTCUSD_20250604
["timestamp","ask_amount","ask_price","bid_price","bid_amount"]
[1749039415522,1.1740155,105050.0,105040.0,0.40416]
[1749039417347,0.76004434,105050.0,105040.0,0.5327143]
[1749039417559,0.36147318,105050.0,105040.0,0.5327143]
[1749039417782,0.75099909,105050.0,105040.0,0.5327143]
[1749039422337,0.75099909,105050.0,105040.0,0.3273143]
[1749039424017,0.75099909,105050.0,105040.0,0.5327143]
[1749039425674,0.75099909,105050.0,105040.0,0.3273143]
[1749039429355,0.75099909,105050.0,105040.0,0.2858743]
[1749039434054,0.75099909,105050.0,105040.0,0.5327143]
[1749039438930,0.75099909,105050.0,105040.0,0.2858743]
[1749039440062,0.76005665,105050.0,105040.0,0.2858743]
[1749039441249,0.75099909,105050.0,105040.0,0.2858343]
[1749039441530,1.55672969,105050.0,105040.0,0.2858343]
[1749039442031,1.55672969,105050.0,105040.0,0.1285543]
[1749039442280,1.55672969,105050.0,105040.0,0.2858343]
[1749039444035,1.55672969,105050.0,105040.0,0.1285543]
[1749039444276,0.36148745,105050.0,105040.0,0.5326743]
[1749039444494,1.15831561,105050.0,105040.0,0.5326743]
[1749039445205,1.15831561,105050.0,105040.0,0.3339543]
[1749039445429,1.15832107,105050.0,105040.0,0.5326743]
[1749039445662,1.55673515,105050.0,105040.0,0.5326743]
[1749039448285,1.63267611,105050.0,105030.0,0.328556]
[1749039448511,2.74628448,105040.0,105000.0,0.3]
[1749039448747,0.39841408,105020.0,105010.0,0.51484046]
[1749039449702,0.39841408,105020.0,105010.0,0.54340146]
[1749039449912,1.13682816,105020.0,105010.0,0.54340146]
[1749039450352,1.13682816,105020.0,105010.0,0.34148446]
[1749039450575,1.13682816,105020.0,105010.0,0.30004446]
[1749039451040,0.34,105020.0,105010.0,0.30004446]
[1749039451267,1.13682816,105020.0,105010.0,0.30004446]
[1749039451493,1.13682816,105020.0,105010.0,0.33114446]
[1749039451941,1.13682816,105020.0,105010.0,0.33414446]
[1749039453721,1.13682816,105020.0,105010.0,0.3192783]
[1749039454253,1.13682816,105020.0,105010.0,0.4088383]
[1749039454474,1.13682816,105020.0,105010.0,0.5661183]
[1749039456770,1.53524224,105020.0,105010.0,0.1619983]
[1749039456996,1.53524224,105020.0,105010.0,0.3192783]
[1749039457218,1.13682816,105020.0,105010.0,0.3192783]
[1749039459215,1.13682816,105020.0,105010.0,0.33381915]
[1749039460112,1.13682816,105020.0,105010.0,0.73381915]
[1749039460329,1.13682816,105020.0,105010.0,1.03381915]
[1749039464102,1.13682816,105020.0,105010.0,1.28069915]
[1749039468303,1.13682816,105020.0,105010.0,1.07525915]
[1749039468950,0.10186889,105050.0,105020.0,0.01454085]
[1749039469171,0.39841408,105040.0,105030.0,0.2846943]
[1749039469400,0.34,105040.0,105030.0,0.2846943]
[1749039469617,0.3558,105040.0,105030.0,0.2816483]
[1749039470281,1.55104224,105040.0,105030.0,0.2816483]
[1749039471599,1.56674224,105040.0,105030.0,0.2816483]
[1749039472464,1.55104224,105040.0,105030.0,0.2816483]
[1749039474220,1.55104224,105040.0,105030.0,0.5284483]
[1749039474788,1.55104224,105040.0,105030.0,0.3712083]
[1749039474917,1.55104224,105040.0,105030.0,0.5284483]
[1749039476060,1.55104224,105040.0,105030.0,0.3712083]
[1749039476235,1.55104224,105040.0,105030.0,0.5284483]
[1749039476655,1.55104224,105040.0,105030.0,0.3298083]
[1749039476861,1.56010407,105040.0,105030.0,0.4998943]
[1749039477037,1.56014407,105040.0,105030.0,0.4998943]
[1749039478252,1.55108224,105040.0,105030.0,0.4998943]
[1749039478448,1.56014628,105040.0,105030.0,0.4998943]
[1749039481351,0.36490404,105040.0,105030.0,0.4998943]
[1749039481567,1.56014628,105040.0,105030.0,0.4998943]
[1749039482209,1.54434628,105040.0,105030.0,0.4998943]
[1749039482637,1.54434628,105040.0,105030.0,0.5163943]
[1749039483951,0.34910404,105040.0,105030.0,0.5163943]
[1749039484199,1.54434628,105040.0,105030.0,0.5163943]
[1749039485305,1.54435124,105040.0,105030.0,0.5163943]
[1749039486410,1.54435124,105040.0,105030.0,0.3012543]
[1749039486624,1.54435124,105040.0,105030.0,0.4998943]
[1749039488534,0.349109,105040.0,105030.0,0.4998943]
[1749039488769,1.54435124,105040.0,105030.0,0.3748543]
[1749039489004,1.56055124,105040.0,105030.0,0.4998943]
[1749039489483,1.55929356,105040.0,105030.0,0.4998943]
[1749039490630,1.55887788,105040.0,105030.0,0.4998943]
[1749039491560,1.55888176,105040.0,105030.0,0.4998943]
[1749039492472,1.55888176,105040.0,105030.0,0.3012543]
[1749039492694,1.57398176,105040.0,105030.0,0.3012543]
[1749039492906,1.57398176,105040.0,105030.0,0.4998543]
[1749039492907,1.57331698,105040.0,105030.0,0.4998543]
[1749039493563,1.57331775,105040.0,105030.0,0.4998543]
[1749039494017,1.55821775,105040.0,105030.0,0.4998543]
[1749039496392,1.55755251,105040.0,105030.0,0.4998543]
[1749039496616,1.54135251,105040.0,105030.0,0.4998543]
[1749039496836,1.54135251,105040.0,105030.0,0.5198543]
[1749039497497,1.55755251,105040.0,105030.0,0.5198543]
[1749039497722,1.55755383,105040.0,105030.0,0.5198543]
[1749039500148,1.54135383,105040.0,105030.0,0.5198543]
[1749039501811,1.53227886,105040.0,105030.0,0.5198543]
[1749039502018,1.54135673,105040.0,105030.0,0.5198543]
[1749039503361,1.54135673,105040.0,105030.0,0.3212543]
[1749039503565,1.55745673,105040.0,105030.0,0.5198543]
[1749039504064,1.54135673,105040.0,105030.0,0.5198543]
[1749039504475,1.55645673,105040.0,105030.0,0.5198543]
[1749039505252,1.54135673,105040.0,105030.0,0.5198543]
[1749039506069,1.54135908,105040.0,105030.0,0.5198543]
[1749039506686,1.54135958,105040.0,105030.0,0.5198543]
[1749039508962,1.54135958,105040.0,105030.0,0.5350543]
[1749039509847,1.54135958,105040.0,105030.0,0.5198543]
[1749039510763,1.54135631,105040.0,105030.0,0.5198543]
[1749039511734,1.54135631,105040.0,105030.0,0.5359543]
[1749039518297,1.54135631,105040.0,105030.0,0.5198543]
[1749039518528,1.55725631,105040.0,105030.0,0.2254]
[1749039518755,1.58470312,105040.0,105030.0,0.2668]
[1749039518981,1.56860312,105040.0,105030.0,0.42396]
[1749039521739,1.58400312,105040.0,105030.0,0.42396]
[1749039521962,1.56860312,105040.0,105030.0,0.42396]
[1749039522830,1.56859955,105040.0,105030.0,0.42396]
[1749039524186,1.55725472,105040.0,105030.0,0.42396]
[1749039524408,1.56859955,105040.0,105030.0,0.42396]
[1749039525476,1.56859955,105040.0,105030.0,0.2254]
[1749039525690,1.56859955,105040.0,105030.0,0.42396]
[1749039526622,1.55269955,105040.0,105030.0,0.42396]
[1749039527105,1.56869978,105040.0,105030.0,0.42396]
[1749039527310,1.55735482,105040.0,105030.0,0.42396]
[1749039527738,1.54135482,105040.0,105030.0,0.42396]
[1749039528515,1.54135482,105040.0,105030.0,0.2254]
[1749039528732,2.78024202,105040.0,105030.0,0.42392]
[1749039528956,1.58499978,105040.0,105030.0,0.42392]
[1749039529193,1.58499978,105040.0,105010.0,0.030783]
[1749039529194,0.34,105030.0,105010.0,0.030783]
[1749039529440,0.34,105030.0,105010.0,0.1113373]
[1749039529441,1.53524224,105020.0,105010.0,0.1113373]
[1749039529667,1.5598182,105020.0,105010.0,0.000483]
[1749039529890,1.5443182,105020.0,105010.0,0.000483]
[1749039530125,1.5443182,105020.0,105010.0,0.016783]
[1749039530357,1.5443182,105020.0,105010.0,0.032083]
[1749039530596,1.5443182,105020.0,105010.0,0.191243]
[1749039531311,1.54430675,105020.0,105010.0,0.191243]
[1749039531751,1.54430675,105020.0,105010.0,0.194243]
[1749039531974,1.54430675,105020.0,105010.0,0.192243]
[1749039532215,1.54430675,105020.0,105010.0,0.193243]
[1749039532461,1.54430675,105020.0,105010.0,0.190243]
[1749039532701,1.54430675,105020.0,105010.0,0.175943]
[1749039534120,1.54430675,105020.0,105010.0,0.422743]
[1749039534879,1.54430675,105020.0,105010.0,0.439243]
[1749039538212,1.54430675,105020.0,105010.0,0.282083]
[1749039538486,1.55980675,105020.0,105010.0,0.207923]
[1749039538713,0.3554,105010.0,104990.0,0.059164]
[1749039538924,0.38106451,105010.0,105000.0,0.40396]
[1749039539369,0.38105282,105010.0,105000.0,0.2468]
[1749039539626,0.38105282,105010.0,105000.0,0.20544]
[1749039539842,0.38105282,105010.0,105000.0,0.19852]
[1749039540060,0.38105282,105010.0,104990.0,0.11404595]
[1749039540289,1.19524224,105000.0,104990.0,0.11404595]
[1749039540737,1.19524224,105000.0,104990.0,0.09894595]
[1749039540738,1.21054224,105000.0,104990.0,0.09894595]
[1749039541180,1.21959463,105000.0,104990.0,0.25310595]
[1749039541429,1.21959463,105000.0,104990.0,0.09594595]
[1749039541645,1.20954224,105000.0,104990.0,0.09594595]
[1749039542100,1.20954224,105000.0,104990.0,0.25310595]
[1749039542101,1.21859135,105000.0,104990.0,0.25310595]
[1749039542360,1.21959135,105000.0,104990.0,0.25310595]
[1749039542581,1.21959135,105000.0,104980.0,0.104]
[1749039542582,0.3702,104990.0,104980.0,0.104]
[1749039542814,1.55044224,104990.0,104980.0,0.26120829]
[1749039543038,1.55948744,104990.0,104980.0,0.26120829]
[1749039543701,1.55948744,104990.0,104980.0,0.10404829]
[1749039543897,1.55948744,104990.0,104980.0,0.26120829]
[1749039544142,1.55948744,104990.0,104980.0,0.50800829]
[1749039544364,1.55948744,104990.0,104980.0,0.30948829]
[1749039544582,1.56048744,104990.0,104980.0,0.50800829]
[1749039545485,1.19150681,104990.0,104980.0,0.50800829]
[1749039545935,0.39458687,104990.0,104980.0,0.50800829]
[1749039546191,0.79353189,104990.0,104980.0,0.50800829]
[1749039546412,0.76930164,104990.0,104980.0,0.63476259]
[1749039548863,0.76930164,104990.0,104980.0,0.36644829]
[1749039549084,0.76930164,104990.0,104980.0,0.32508829]
[1749039549309,1.18366161,104990.0,104980.0,0.50800829]
[1749039549963,0.78470164,104990.0,104980.0,0.50800829]
[1749039551253,0.76930164,104990.0,104980.0,0.50800829]
[1749039551465,0.76930164,104990.0,104980.0,0.52330829]
[1749039551683,0.76930164,104990.0,104980.0,0.53930829]
[1749039553419,0.78460164,104990.0,104980.0,0.50800829]
[1749039553620,0.76930164,104990.0,104980.0,0.50800829]
[1749039553859,0.76930164,104990.0,104980.0,0.35084829]
[1749039554074,0.76930164,104990.0,104980.0,0.52370829]
[1749039554703,0.80080164,104990.0,104980.0,0.50800829]
[1749039554932,0.78550164,104990.0,104980.0,0.50800829]
[1749039555141,0.80080164,104990.0,104980.0,0.50800829]
[1749039555766,0.78550164,104990.0,104980.0,0.50800829]
[1749039555967,0.80090164,104990.0,104980.0,0.35084829]
[1749039556212,1.19986161,104990.0,104980.0,0.50800829]
[1749039556695,0.80090164,104990.0,104980.0,0.50800829]
[1749039556911,0.80994517,104990.0,104980.0,0.50800829]
[1749039557806,0.79454517,104990.0,104980.0,0.50800829]
[1749039558696,0.7783508,104990.0,104980.0,0.50800829]
[1749039559383,0.7783508,104990.0,104980.0,0.53890829]
[1749039559872,0.37939083,104990.0,104980.0,0.63476259]
[1749039560087,0.42930164,104990.0,104980.0,0.63476259]
[1749039560322,0.42930164,104990.0,104980.0,0.66333259]
[1749039560543,0.76930164,104990.0,104980.0,0.66333259]
[1749039560784,0.37034167,104990.0,104980.0,0.66333259]
[1749039560998,0.74095997,104990.0,104980.0,0.45789259]
[1749039561439,0.74095997,104990.0,104980.0,0.41649259]
[1749039564178,0.74095997,104990.0,104980.0,0.66333259]
[1749039566902,0.74095997,104990.0,104980.0,0.45781259]
[1749039568284,0.74095997,104990.0,104980.0,0.25937259]
[1749039568496,0.74095997,104990.0,104980.0,0.41649259]
[1749039569305,0.74095997,104990.0,104980.0,0.25937259]
[1749039569547,0.75004253,104990.0,104980.0,0.22847259]
[1749039569756,0.75008253,104990.0,104980.0,0.38559259]
[1749039571139,0.75008255,104990.0,104980.0,0.38559259]
[1749039573308,0.76588255,104990.0,104980.0,0.28969829]
[1749039574118,0.76588255,104990.0,104980.0,0.53653829]
[1749039574760,0.76588255,104990.0,104980.0,0.33813829]
[1749039574972,0.76588255,104990.0,104980.0,0.53653829]
[1749039575186,0.76588255,104990.0,104980.0,0.33813829]
[1749039575405,0.76588255,104990.0,104980.0,0.53653829]
[1749039575619,0.76588255,104990.0,104980.0,0.37945829]
[1749039575837,1.16444252,104990.0,104980.0,0.35088829]
[1749039576056,1.17984252,104990.0,104980.0,0.50796829]
[1749039576269,1.28370696,104990.0,104980.0,0.50796829]
[1749039576494,1.19119574,104990.0,104980.0,0.50796829]
[1749039577388,1.19119574,104990.0,104980.0,0.53654329]
[1749039578303,0.79223577,104990.0,104980.0,0.53654329]
[1749039579383,0.7922295,104990.0,104980.0,0.50796829]
[1749039579618,0.7768295,104990.0,104980.0,0.50796829]
[1749039579835,1.17578947,104990.0,104980.0,0.50796829]
[1749039580259,1.17578947,104990.0,104980.0,0.35088829]
[1749039580479,1.17578947,104990.0,104980.0,0.50796829]
[1749039583422,0.7768295,104990.0,104980.0,0.50796829]
[1749039583686,0.77682934,104990.0,104980.0,0.50796829]
[1749039589840,0.76547969,104990.0,104980.0,0.50796829]
[1749039590754,0.76547514,104990.0,104980.0,0.50796829]
[1749039591881,0.76547584,104990.0,104980.0,0.50796829]
[1749039593691,0.77682067,104990.0,104980.0,0.50796829]
[1749039593924,0.76547584,104990.0,104980.0,0.35088829]
[1749039594150,1.17578064,104990.0,104980.0,0.35088829]
[1749039594377,0.77682067,104990.0,104980.0,0.50796829]
[1749039596012,0.75639997,104990.0,104980.0,0.50796829]
[1749039596217,0.77683202,104990.0,104980.0,0.50796829]
[1749039598402,0.34,104980.0,104970.0,0.0306816]
[1749039598634,1.19015199,104980.0,104970.0,0.4038883]
[1749039599320,1.58953604,104980.0,104960.0,0.01487406]
[1749039599533,0.8838446,104980.0,104970.0,0.04128]
[1749039599743,0.79333338,104980.0,104970.0,0.04128]
[1749039599960,0.79333338,104980.0,104960.0,0.01501901]
[1749039600235,0.79133595,104980.0,104960.0,0.01501901]
[1749039600661,0.79133595,104980.0,104970.0,0.15804]
[1749039600904,0.79133595,104980.0,104970.0,0.15704]
[1749039601136,0.79133595,104980.0,104960.0,0.01501901]
[1749039601373,0.48574584,104980.0,104960.0,0.01501901]
[1749039601639,0.48474584,104980.0,104960.0,0.01501901]
[1749039601887,1.13819772,104970.0,104960.0,0.01501901]
[1749039602094,1.14727977,104970.0,104960.0,0.01501901]
[1749039602316,1.14727977,104970.0,104960.0,0.17205901]
[1749039602317,1.13819772,104970.0,104960.0,0.17205901]
[1749039602532,1.14727986,104970.0,104960.0,0.17205901]
[1749039602769,1.14727986,104970.0,104960.0,0.01501901]
[1749039602770,1.23979108,104970.0,104960.0,0.01501901]
[1749039602982,1.25588955,104970.0,104960.0,0.17205901]
[1749039603201,1.23978955,104970.0,104960.0,0.17205901]
[1749039603865,1.14727833,104970.0,104960.0,0.15718495]
[1749039604112,1.14727833,104970.0,104960.0,0.20566495]
[1749039604336,1.14827833,104970.0,104960.0,0.40398495]
[1749039604554,1.14827833,104970.0,104960.0,0.41928495]
[1749039605712,1.1579196,104970.0,104960.0,0.40398495]
[1749039606355,1.1579196,104970.0,104960.0,0.23424495]
[1749039606573,1.22762383,104970.0,104960.0,0.43256495]
[1749039606837,1.22762383,104970.0,104960.0,0.44744053]
[1749039607286,1.22762383,104970.0,104960.0,0.46344053]
[1749039609053,1.1579196,104970.0,104960.0,0.46344053]
[1749039609927,1.1579196,104970.0,104960.0,0.44856495]
[1749039611059,1.1579196,104970.0,104960.0,0.44856495]
[1749039611271,1.15792088,104970.0,104960.0,0.44856495]
[1749039611484,1.15589246,104970.0,104960.0,0.44856495]
[1749039611926,1.1558921,104970.0,104960.0,0.44856495]
[1749039612150,1.1558921,104970.0,104960.0,0.25024495]
[1749039612389,1.1558921,104970.0,104960.0,0.43256495]
[1749039612642,1.1558921,104970.0,104960.0,0.44886495]
[1749039612906,1.1558921,104970.0,104960.0,0.29182495]
[1749039613146,1.1558921,104970.0,104960.0,0.44882495]
[1749039613674,1.24840332,104970.0,104960.0,0.44882495]
[1749039614388,1.1558921,104970.0,104960.0,0.44882495]
[1749039615659,1.15589116,104970.0,104960.0,0.44882495]
[1749039616820,1.15589116,104970.0,104960.0,0.46370063]
[1749039619671,1.15589311,104970.0,104960.0,0.46370063]
[1749039621724,1.16724629,104970.0,104960.0,0.24804432]
[1749039621963,1.29185751,104970.0,104960.0,0.24676]
[1749039622230,1.29185751,104970.0,104960.0,0.40376]
[1749039623169,0.34,104960.0,104950.0,0.11417829]
[1749039623433,1.54657688,104960.0,104950.0,0.11417829]
[1749039623667,1.54657688,104960.0,104950.0,0.15537829]
[1749039623905,0.34908381,104960.0,104950.0,0.15537829]
[1749039624125,0.00908381,104960.0,104950.0,0.36093829]
[1749039624344,1.54657815,104960.0,104950.0,0.52033829]
[1749039624562,1.54657815,104960.0,104950.0,0.52233829]
[1749039624776,1.54657815,104960.0,104950.0,0.50803829]
[1749039625415,0.74821425,104960.0,104950.0,0.50803829]
[1749039627171,0.34908381,104960.0,104950.0,0.50803829]
[1749039627383,0.74821425,104960.0,104950.0,0.50803829]
[1749039627835,0.74822237,104960.0,104950.0,0.50803829]
[1749039628491,0.74822237,104960.0,104950.0,0.34863829]
[1749039628711,0.74822237,104960.0,104950.0,0.50819829]
[1749039629988,1.23986403,104960.0,104950.0,0.27593829]
[1749039630215,1.14735281,104960.0,104950.0,0.27593829]
[1749039630426,0.75958728,104960.0,104950.0,0.47681829]
[1749039630641,0.75958728,104960.0,104950.0,0.49295829]
[1749039630854,1.15871772,104960.0,104950.0,0.50845829]
[1749039631079,0.75958728,104960.0,104950.0,0.50845829]
[1749039634877,0.75958728,104960.0,104950.0,0.30753829]
[1749039635127,0.75958728,104960.0,104950.0,0.50845829]
[1749039635819,1.25122894,104960.0,104950.0,0.33327829]
[1749039636051,1.25120498,104960.0,104950.0,0.49307829]
[1749039636482,1.25120498,104960.0,104950.0,0.33327829]
[1749039636698,1.25120498,104960.0,104950.0,0.47693829]
[1749039637629,1.25120498,104960.0,104950.0,0.31717829]
[1749039637841,1.25120498,104960.0,104950.0,0.47697829]
[1749039638481,1.28230498,104960.0,104950.0,0.47697829]
[1749039638699,1.25120498,104960.0,104950.0,0.47597829]
[1749039638835,1.25120498,104960.0,104950.0,0.27493829]
[1749039639046,1.25120498,104960.0,104950.0,0.47597829]
[1749039639254,1.25120498,104960.0,104950.0,0.47497829]
[1749039639494,1.25220498,104960.0,104950.0,0.47497829]
[1749039640069,1.25219119,104960.0,104950.0,0.27393829]
[1749039640269,1.25219119,104960.0,104950.0,0.47497829]
[1749039642123,1.25219119,104960.0,104950.0,0.27393829]
[1749039642320,1.25219119,104960.0,104950.0,0.47493829]
[1749039643779,1.25219119,104960.0,104950.0,0.27393829]
[1749039643988,1.15967997,104960.0,104950.0,0.47489829]
[1749039644173,1.15967923,104960.0,104950.0,0.47489829]
[1749039644407,1.15967923,104960.0,104950.0,0.49119829]
[1749039645223,1.15967923,104960.0,104950.0,0.47485829]
[1749039646554,0.36141835,104960.0,104950.0,0.47485829]
[1749039646771,1.15967923,104960.0,104950.0,0.49065829]
[1749039646975,1.15967923,104960.0,104950.0,0.50655829]
[1749039647389,0.76054879,104960.0,104950.0,0.50655829]
[1749039647854,1.23025278,104960.0,104950.0,0.50655829]
[1749039648072,1.23025278,104960.0,104950.0,0.49065829]
[1749039648276,1.2302553,104960.0,104950.0,0.49065829]
[1749039649277,1.2302553,104960.0,104950.0,0.50625829]
[1749039649512,1.15968175,104960.0,104950.0,0.50625829]
[1749039649950,1.15968175,104960.0,104950.0,0.49065829]
[1749039650790,1.15968175,104960.0,104950.0,0.50655829]
[1749039651002,1.15968175,104960.0,104950.0,0.30563829]
[1749039651215,1.15968175,104960.0,104950.0,0.50831829]
[1749039651445,0.76055131,104960.0,104950.0,0.50831829]
[1749039651934,1.15968175,104960.0,104950.0,0.50831829]
[1749039652388,1.15968968,104960.0,104950.0,0.50831829]
[1749039653291,1.55907902,104960.0,104950.0,0.50831829]
[1749039653721,0.3614288,104960.0,104950.0,0.50831829]
[1749039653937,1.55907902,104960.0,104950.0,0.50831829]
[1749039654780,1.55907902,104960.0,104950.0,0.49241829]
[1749039654994,1.55907902,104960.0,104950.0,0.47661829]
[1749039656593,1.53865022,104960.0,104950.0,0.47661829]
[1749039656829,1.55907707,104960.0,104950.0,0.47661829]
[1749039657062,1.55907707,104960.0,104950.0,0.49271829]
[1749039657536,1.57419168,104960.0,104950.0,0.49271829]
[1749039658941,1.57419168,104960.0,104950.0,0.33291829]
[1749039659185,1.6667029,104960.0,104950.0,0.47645829]
[1749039660424,1.6667029,104960.0,104950.0,0.27393829]
[1749039660657,1.65535465,104960.0,104950.0,0.47677829]
[1749039660884,1.66670368,104960.0,104950.0,0.47677829]
[1749039661144,2.8959539,104960.0,104950.0,0.2056]
[1749039661363,0.34,104950.0,104940.0,0.95569071]
[1749039661581,1.67004004,104950.0,104940.0,0.82120105]
[1749039661794,1.67004004,104950.0,104940.0,0.79261705]
[1749039662450,1.57752882,104950.0,104940.0,0.79261705]
[1749039662905,1.57852882,104950.0,104940.0,0.79261705]
[1749039663347,1.57852387,104950.0,104940.0,0.79261705]
[1749039664240,1.57852387,104950.0,104940.0,1.04109705]
[1749039664460,1.57852387,104950.0,104940.0,1.04105705]
[1749039664893,1.67103509,104950.0,104940.0,1.04105705]
[1749039666405,1.67103509,104950.0,104940.0,0.83825705]
[1749039666622,1.67103509,104950.0,104940.0,1.04121705]
[1749039667918,1.67103509,104950.0,104940.0,0.83825705]
[1749039668377,1.67103509,104950.0,104940.0,0.50878972]
[1749039668378,2.96453961,104950.0,104940.0,0.50878972]
[1749039668382,2.96453961,104950.0,104940.0,0.61710498]
[1749039668383,0.64518013,104950.0,104940.0,0.61710498]
[1749039668622,1.77823145,104950.0,104940.0,0.6075856]
[1749039669088,1.77723145,104950.0,104940.0,0.6075856]
[1749039669313,1.77923145,104950.0,104940.0,0.6075856]
[1749039669545,0.58358123,104950.0,104940.0,0.6075856]
[1749039669780,1.76988939,104950.0,104940.0,0.6075856]
[1749039670239,1.76988939,104950.0,104940.0,0.5647056]
[1749039670477,0.57223917,104950.0,104940.0,0.6076656]
[1749039670711,1.76988939,104950.0,104940.0,0.5913694]
[1749039670953,1.68872023,104950.0,104940.0,0.5913694]
[1749039671184,1.68872023,104950.0,104940.0,0.3879294]
[1749039671402,1.68872023,104950.0,104940.0,0.5916094]
[1749039671628,1.78120778,104950.0,104940.0,0.5916094]
[1749039672114,1.78120781,104950.0,104940.0,0.5916094]
[1749039672546,1.78120781,104950.0,104940.0,0.5640094]
[1749039673001,1.76560781,104950.0,104940.0,0.24848]
[1749039673234,0.0161,104940.0,104920.0,0.02008049]
[1749039673445,0.79843348,104930.0,104920.0,0.01060896]
[1749039673673,0.80749662,104930.0,104920.0,0.01060896]
[1749039673893,0.80749662,104930.0,104920.0,0.00108945]
[1749039674119,0.80749662,104930.0,104920.0,0.24960945]
[1749039674352,1.14749662,104930.0,104920.0,0.20564]
[1749039674603,1.54671336,104930.0,104900.0,0.02988452]
[1749039674826,0.79843348,104910.0,104900.0,0.09714982]
[1749039675045,0.39921674,104910.0,104900.0,0.25778982]
[1749039675502,0.73921674,104920.0,104900.0,0.25778982]
[1749039675503,0.34,104920.0,104900.0,0.25778982]
[1749039675720,0.39921674,104910.0,104900.0,0.25778982]
[1749039676002,0.39921674,104910.0,104900.0,0.26278982]
[1749039676245,0.34,104910.0,104900.0,0.27233067]
[1749039676461,0.73921674,104910.0,104900.0,0.28953067]
[1749039676682,0.73921674,104910.0,104900.0,0.31812167]
[1749039676901,0.73921674,104910.0,104900.0,0.30358082]
[1749039677130,0.73921674,104910.0,104900.0,0.27498982]
[1749039677329,0.73944697,104910.0,104900.0,0.29088982]
[1749039677755,0.74871555,104910.0,104900.0,0.29088982]
[1749039677970,0.74871555,104910.0,104900.0,0.29184982]
[1749039678189,0.74871555,104910.0,104900.0,0.27684982]
[1749039678411,1.14816252,104910.0,104900.0,0.1636]
[1749039678639,0.74871555,104910.0,104900.0,0.1636]
[1749039678868,0.74871555,104910.0,104900.0,0.1788]
[1749039679087,0.74871555,104910.0,104900.0,0.1626]
[1749039679328,1.14816252,104910.0,104900.0,0.1606]
[1749039679545,0.34,104900.0,104890.0,0.059793]
[1749039679807,0.73944697,104900.0,104890.0,0.17588]
[1749039680237,0.73944697,104900.0,104890.0,0.0152]
[1749039680683,0.73944697,104900.0,104890.0,0.17592]
[1749039680901,0.73944697,104900.0,104890.0,0.17596]
[1749039681145,0.73944697,104900.0,104890.0,0.19416]
[1749039681359,0.73944697,104900.0,104890.0,0.19516]
[1749039682039,0.73944697,104900.0,104890.0,0.0344]
[1749039682253,0.73944697,104900.0,104890.0,0.1952]
[1749039684082,0.73944697,104900.0,104890.0,0.44428]
[1749039684740,0.04006858,104910.0,104890.0,0.44428]
[1749039684960,0.73944697,104900.0,104890.0,0.44428]
[1749039685631,0.73944697,104900.0,104890.0,0.44328]
[1749039685868,0.34,104900.0,104890.0,0.42808]
[1749039686088,0.73944697,104900.0,104890.0,0.42808]
[1749039686746,0.34,104900.0,104890.0,0.34927515]
[1749039686990,0.34,104900.0,104890.0,0.55467515]
[1749039687223,0.34,104900.0,104890.0,0.55367515]
[1749039687461,0.00926858,104910.0,104900.0,0.6321]
[1749039687766,0.39944697,104910.0,104900.0,0.14249515]
[1749039688015,0.39944697,104910.0,104900.0,0.1279543]
[1749039688271,0.39944697,104910.0,104900.0,0.3621043]
[1749039688512,0.39944697,104910.0,104900.0,0.3632243]
[1749039688757,0.44526954,104930.0,104900.0,0.3642243]
[1749039688983,0.39944697,104910.0,104900.0,0.26837]
[1749039689222,0.38462858,104930.0,104910.0,0.0306]
[1749039689440,0.39944697,104920.0,104910.0,0.0306]
[1749039689913,0.40889189,104920.0,104910.0,0.03298289]
[1749039690158,0.40889189,104920.0,104910.0,0.1264543]
[1749039690830,0.40989189,104920.0,104910.0,0.1264543]
[1749039691279,0.41089189,104920.0,104910.0,0.1264543]
[1749039692861,0.41089189,104920.0,104910.0,0.1112543]
[1749039694072,0.34,104910.0,104900.0,0.04419]
[1749039694299,0.73944697,104910.0,104900.0,0.3663643]
[1749039695468,0.73944697,104910.0,104900.0,0.3683643]
[1749039695918,0.73944697,104910.0,104900.0,0.3518043]
[1749039696359,0.73944697,104910.0,104900.0,0.3677043]
[1749039698009,0.34,104910.0,104900.0,0.3677043]
[1749039698223,0.34,104910.0,104900.0,0.38224515]
[1749039700311,0.73944697,104910.0,104900.0,0.1579443]
[1749039700511,0.73944697,104910.0,104900.0,0.3388743]
[1749039702732,0.34,104910.0,104900.0,0.35341515]
[1749039703000,0.34,104910.0,104900.0,0.65341515]
[1749039703656,0.34,104910.0,104900.0,0.68200215]
[1749039707356,0.34,104910.0,104900.0,1.08200215]
[1749039710292,0.34,104910.0,104900.0,1.33632215]
[1749039710533,0.02932858,104930.0,104920.0,0.34574085]
[1749039710777,0.02932858,104930.0,104920.0,0.60515515]
[1749039711197,0.02932858,104930.0,104920.0,0.63373715]
[1749039712986,0.03332858,104930.0,104920.0,0.63373715]
[1749039713940,0.03032858,104930.0,104920.0,0.63373715]
[1749039714163,0.00214461,104930.0,104920.0,1.58450412]
[1749039714410,0.00214461,104930.0,104920.0,1.18505715]
[1749039714411,0.00114461,104930.0,104920.0,1.18505715]
[1749039714869,0.00114461,104930.0,104920.0,1.58505715]
[1749039716667,0.00114461,104930.0,104920.0,1.37941715]
[1749039716893,0.01628688,104980.0,104960.0,0.01454085]
[1749039716894,0.031,104980.0,104960.0,0.01454085]
[1749039717148,0.47538793,104970.0,104960.0,0.01454085]
[1749039717395,0.81538793,104970.0,104960.0,0.31915515]
[1749039717860,0.83038793,104970.0,104960.0,0.31915515]
[1749039718093,0.83038793,104970.0,104960.0,0.3045743]
[1749039718094,1.2452349,104970.0,104960.0,0.3045743]
[1749039718381,1.2548791,104970.0,104960.0,0.3045743]
[1749039719746,1.2588791,104970.0,104960.0,0.3045743]
[1749039719982,1.2618791,104970.0,104960.0,0.3033743]
[1749039720462,1.18593814,104970.0,104960.0,0.0958543]
[1749039720673,1.18593814,104970.0,104960.0,0.3033743]
[1749039721133,1.19498153,104970.0,104960.0,0.3033743]
[1749039721364,0.3728,104960.0,104950.0,0.028574]
[1749039721592,0.77224697,104960.0,104950.0,0.3033343]
[1749039722258,0.77224697,104960.0,104950.0,0.3032943]
[1749039722708,0.77424697,104960.0,104950.0,0.3032943]
[1749039722934,0.77524697,104960.0,104950.0,0.3032943]
[1749039724239,0.77524697,104960.0,104950.0,0.5088943]
[1749039724453,0.77524697,104960.0,104950.0,0.3014543]
[1749039724674,0.77524697,104960.0,104950.0,0.5086943]
[1749039725194,0.77524697,104960.0,104950.0,0.2056]
[1749039725414,0.77524697,104960.0,104950.0,0.41276]
[1749039728373,0.74687388,104960.0,104950.0,0.2056]
[1749039728637,0.74687388,104960.0,104950.0,0.41276]
[1749039728848,0.75591758,104960.0,104950.0,0.41276]
[1749039730658,0.75591758,104960.0,104950.0,0.2056]
[1749039730878,0.34,104950.0,104910.0,0.0308]
[1749039731109,0.73944697,104930.0,104920.0,0.5394143]
[1749039731566,0.73944697,104930.0,104920.0,0.55395515]
[1749039732062,0.77064697,104930.0,104920.0,0.5089743]
[1749039732287,0.77064697,104930.0,104920.0,0.3460943]